bitfinex/quotes_SOLUSD_20240718
["timestamp","ask_amount","ask_price","bid_price","bid_amount"]
[1721316635506,1.58886164,157.37,157.29,6.6370699]
[1721316635705,1.58886164,157.37,157.27,34.87]
[1721316636642,1.58886164,157.37,157.28,6.61639354]
[1721316637331,1.58886164,157.37,157.29,45.0]
[1721316638003,1.58886164,157.37,157.3,20.0]
[1721316639634,1.58886164,157.37,157.28,20.0]
[1721316640331,6.415,157.38,157.28,20.0]
[1721316640525,1.58875796,157.37,157.28,20.0]
[1721316640706,1.58875796,157.37,157.29,45.0]
[1721316640901,1.58875796,157.37,157.3,20.0]
[1721316643418,1.58875796,157.37,157.31,45.0]
[1721316643620,1.58875796,157.37,157.32,20.0]
[1721316643936,6.415,157.38,157.32,20.0]
[1721316644109,6.415,157.38,157.33,45.0]
[1721316644433,6.415,157.38,157.34,20.0]
[1721316645225,6.415,157.38,157.33,20.0]
[1721316645429,6.415,157.38,157.35,45.0]
[1721316645835,6.415,157.38,157.34,45.0]
[1721316646142,6.415,157.38,157.35,20.0]
[1721316646636,15.2355,157.41,157.35,20.0]
[1721316646853,6.2193,157.42,157.36,45.0]
[1721316647053,6.2193,157.42,157.37,20.0]
[1721316647924,6.2193,157.42,157.38,45.0]
[1721316648125,6.2193,157.42,157.39,20.0]
[1721316649257,6.2193,157.42,157.34,20.0]
[1721316649413,1.5882279,157.41,157.34,20.0]
[1721316650839,1.5882279,157.41,157.3,20.0]
[1721316651043,1.5882279,157.41,157.31,45.0]
[1721316651338,1.5882279,157.41,157.32,20.0]
[1721316651643,7.80783909,157.42,157.33,45.0]
[1721316651822,7.80783909,157.42,157.34,20.0]
[1721316651823,1.58838746,157.41,157.34,20.0]
[1721316652018,6.2193,157.42,157.35,45.0]
[1721316652524,6.2193,157.42,157.36,20.0]
[1721316652726,6.2193,157.42,157.37,45.0]
[1721316652927,6.2193,157.42,157.38,20.0]
[1721316653450,1.58838737,157.45,157.39,45.0]
[1721316653640,21.3084,157.46,157.4,20.0]
[1721316653832,21.3084,157.46,157.41,45.0]
[1721316654032,21.3084,157.46,157.42,20.0]
[1721316655327,6.0729,157.46,157.42,20.0]
[1721316657035,1.58775204,157.49,157.42,20.0]
[1721316658349,8.17200468,157.54,157.43,80.21]
[1721316658530,8.17200468,157.54,157.44,20.0]
[1721316658832,8.17200468,157.54,157.45,45.0]
[1721316659029,8.17200468,157.54,157.46,20.0]
[1721316659252,8.17200468,157.54,157.47,45.0]
[1721316659459,8.17200468,157.54,157.48,20.0]
[1721316660443,6.5848,157.54,157.48,20.0]
[1721316660655,8.17178986,157.54,157.48,20.0]
[1721316663167,6.5848,157.54,157.48,20.0]
[1721316663667,8.17180924,157.54,157.48,20.0]
[1721316664937,6.5848,157.54,157.48,20.0]
[1721316665367,1.58704804,157.57,157.5,30.99]
[1721316665568,1.58704804,157.57,157.51,20.0]
[1721316665873,7.79671353,157.58,157.51,20.0]
[1721316666469,7.79652143,157.58,157.52,45.0]
[1721316666649,6.2099,157.58,157.53,50.99]
[1721316666842,1.58666188,157.62,157.53,66.2422]
[1721316667040,1.58666188,157.62,157.53,20.0]
[1721316667241,6.3449,157.61,157.49,50.99]
[1721316667463,1.5867982,157.6,157.5,45.0]
[1721316667762,1.5867982,157.6,157.51,20.0]
[1721316668891,1.58659155,157.61,157.52,75.99]
[1721316669064,1.58648163,157.6,157.53,20.0]
[1721316669264,2.40567594,157.63,157.54,45.0]
[1721316669461,2.40567594,157.63,157.55,20.0]
[1721316669462,8.74957594,157.63,157.55,20.0]
[1721316670088,21.53567594,157.63,157.55,20.0]
[1721316670282,21.53567594,157.63,157.53,20.0]
[1721316670486,6.345,157.61,157.53,20.0]
[1721316670679,6.2983,157.57,157.53,20.0]
[1721316670872,1.5869084,157.56,157.46,30.99]
[1721316671099,6.5175,157.55,157.46,30.99]
[1721316671407,1.58727569,157.54,157.46,30.99]
[1721316671577,7.93507569,157.54,157.43,30.99]
[1721316671913,0.17,157.53,157.43,30.99]
[1721316672092,1.75744849,157.53,157.43,30.99]
[1721316672265,1.75744849,157.53,157.41,34.87]
[1721316672469,1.58744849,157.53,157.41,34.87]
[1721316672670,1.58734348,157.56,157.41,34.87]
[1721316672894,1.58734348,157.56,157.44,34.87]
[1721316673406,1.58734348,157.56,157.45,45.34]
[1721316673571,1.58734348,157.56,157.45,45.0]
[1721316674210,0.17,157.55,157.41,34.87]
[1721316674494,1.58730756,157.54,157.41,34.87]
[1721316674696,7.88545184,157.57,157.44,34.87]
[1721316675397,6.2983,157.57,157.48,15.4663]
[1721316675605,6.2983,157.57,157.49,65.34]
[1721316677301,6.4962,157.61,157.5,34.87]
[1721316677497,1.58641345,157.6,157.51,65.34]
[1721316677994,1.58641345,157.6,157.51,65.0]
[1721316684881,1.58641345,157.6,157.51,99.87]
[1721316685100,8.08265983,157.61,157.52,0.34]
[1721316685688,1.586379,157.6,157.51,99.87]
[1721316686108,1.586379,157.6,157.51,65.0]
[1721316687986,8.08277889,157.61,157.51,65.0]
[1721316688313,0.8191962,157.63,157.52,0.34]
[1721316690394,1.58622533,157.62,157.51,54.87]
[1721316691618,0.17,157.61,157.51,54.87]
[1721316691793,1.58654612,157.61,157.52,45.0]
[1721316691993,1.58648626,157.6,157.53,20.0]
[1721316692212,2.40568254,157.63,157.53,20.0]
[1721316692509,0.17,157.62,157.53,20.0]
[1721316692721,1.7565163,157.62,157.53,20.0]
[1721316692897,1.5865163,157.62,157.53,20.0]
[1721316693094,1.5865163,157.62,157.54,45.0]
[1721316693411,1.5865163,157.62,157.55,20.0]
[1721316694807,0.8191962,157.63,157.56,45.0]
[1721316694984,0.8191962,157.63,157.57,20.0]
[1721316695185,1.58619293,157.62,157.57,20.0]
[1721316695487,1.58619293,157.62,157.55,20.0]
[1721316695699,0.8191962,157.63,157.55,20.0]
[1721316695902,0.8191962,157.63,157.56,45.0]
[1721316696120,0.8191962,157.63,157.57,20.0]
[1721316696421,0.8191962,157.63,157.57,50.96]
[1721316696594,0.8191962,157.63,157.6,30.96]
[1721316697413,0.8191962,157.63,157.61,20.0]
[1721316705544,0.8191962,157.63,157.58,20.0]
[1721316705712,6.483,157.62,157.54,30.96]
[1721316705914,1.58631966,157.61,157.54,30.96]
[1721316706145,1.58646102,157.6,157.54,30.96]
[1721316707033,7.93176102,157.6,157.47,16.606]
[1721316707233,0.17,157.59,157.49,30.96]
[1721316707537,1.75681793,157.59,157.49,30.96]
[1721316707730,21.5376,157.58,157.49,30.96]
[1721316707935,27.06346457,157.57,157.46,37.59342286]
[1721316708233,20.88706457,157.57,157.47,7.62429191]
[1721316708929,25.4634,157.54,157.43,30.96]
[1721316709134,1.58766415,157.53,157.44,7.62598542]
[1721316709475,1.58766415,157.53,157.44,6.63795616]
[1721316709476,0.17,157.52,157.44,6.63795616]
[1721316709611,1.75771091,157.52,157.4,30.96]
[1721316709948,20.88771091,157.52,157.4,30.96]
[1721316710114,20.88771091,157.52,157.39,6.63857571]
[1721316710316,20.88771091,157.52,157.38,15.5129]
[1721316710921,1.75771091,157.52,157.38,15.5129]
[1721316712430,1.75771091,157.52,157.39,65.0]
[1721316715454,15.2355,157.51,157.39,65.0]
[1721316715616,1.75772827,157.5,157.39,65.0]
[1721316716845,25.2801,157.49,157.37,6.63801155]
[1721316717036,19.13,157.46,157.37,6.63801155]
[1721316717245,1.58846407,157.45,157.37,6.63801155]
[1721316717426,0.17,157.44,157.37,6.63801155]
[1721316717622,1.75840161,157.44,157.37,6.63801155]
[1721316718350,1.58840359,157.45,157.38,45.0]
[1721316719159,1.58840359,157.45,157.39,20.0]
[1721316719363,21.3856,157.47,157.4,45.0]
[1721316719525,21.3856,157.47,157.41,20.0]
[1721316719927,21.3856,157.47,157.42,45.0]
[1721316720156,6.1501,157.47,157.43,20.0]
[1721316720653,1.58760483,157.46,157.43,20.0]
[1721316720868,6.1501,157.47,157.39,34.9]
[1721316720869,6.1501,157.47,157.4,20.0]
[1721316721044,6.1501,157.47,157.41,45.0]
[1721316721242,1.58764553,157.46,157.42,20.0]
[1721316721459,6.1501,157.47,157.42,20.0]
[1721316721841,6.1501,157.47,157.43,45.0]
[1721316722059,6.1501,157.47,157.44,20.0]
[1721316722676,6.1501,157.47,157.37,6.63887235]
[1721316722677,1.58764481,157.46,157.37,6.63887235]
[1721316722970,1.58764481,157.46,157.24,381.3]
[1721316722971,1.58808197,157.45,157.33,34.9]
[1721316723185,1.58808197,157.45,157.31,16.572]
[1721316723477,1.58808197,157.45,157.34,6.64082163]
[1721316723668,1.58808197,157.45,157.33,34.9]
[1721316724361,1.58814816,157.46,157.34,65.34]
[1721316724580,1.58800777,157.45,157.36,34.9]
[1721316724738,1.58800777,157.45,157.37,65.0]
[1721316724945,6.1501,157.47,157.38,0.34]
[1721316725145,6.1501,157.47,157.39,34.9]
[1721316725359,6.1501,157.47,157.4,65.0]
[1721316725875,1.58757318,157.46,157.4,65.0]
[1721316726053,1.58782134,157.46,157.4,65.0]
[1721316726667,6.1501,157.47,157.4,65.0]
[1721316726668,1.58784467,157.45,157.4,65.0]
[1721316726974,1.58784467,157.45,157.4,20.0]
[1721316727159,1.58784467,157.45,157.37,20.0]
[1721316727359,1.58784467,157.45,157.36,34.9]
[1721316727576,1.58784467,157.45,157.33,40.9125]
[1721316728384,1.758174,157.46,157.33,40.9125]
[1721316728577,1.758174,157.46,157.36,34.9]
[1721316728578,1.588174,157.46,157.36,34.9]
[1721316728967,1.588174,157.46,157.37,45.0]
[1721316729290,6.1501,157.47,157.37,45.0]
[1721316729451,6.1501,157.47,157.38,0.34]
[1721316729783,6.1501,157.47,157.38,20.34]
[1721316730075,6.1501,157.47,157.39,79.9]
[1721316730278,6.1501,157.47,157.41,31.01]
[1721316730454,6.1501,157.47,157.42,65.0]
[1721316730651,1.58760214,157.5,157.44,31.01]
[1721316730874,1.58740903,157.5,157.45,45.0]
[1721316731058,1.58740903,157.5,157.46,20.0]
[1721316731598,1.58740903,157.5,157.42,20.0]
[1721316732082,0.17,157.49,157.42,20.0]
[1721316732260,1.75772066,157.49,157.42,20.0]
[1721316732458,1.75772066,157.49,157.38,31.01]
[1721316732662,1.75772066,157.49,157.35,31.01]
[1721316732663,34.3655,157.46,157.35,31.01]
[1721316732892,1.58836844,157.45,157.35,31.01]
[1721316733063,0.17,157.44,157.35,31.01]
[1721316733262,1.75826228,157.44,157.35,31.01]
[1721316733473,1.58826228,157.45,157.35,31.01]
[1721316733678,1.58826228,157.45,157.38,31.01]
[1721316734184,1.58826228,157.45,157.39,20.0]
[1721316734562,1.58826228,157.45,157.36,20.0]
[1721316735292,0.17,157.44,157.36,20.0]
[1721316735592,1.75833233,157.44,157.36,20.0]
[1721316736583,1.58819565,157.45,157.36,20.0]
[1721316736773,1.58822759,157.44,157.36,20.0]
[1721316737082,1.58822759,157.44,157.37,45.0]
[1721316737258,1.58822759,157.44,157.38,20.0]
[1721316737963,1.58833043,157.43,157.36,20.0]
[1721316738162,1.58822646,157.45,157.37,45.0]
[1721316738379,1.58822646,157.45,157.38,20.0]
[1721316739076,16.82360721,157.46,157.38,20.0]
[1721316739276,15.2355,157.46,157.39,45.0]
[1721316739473,15.2355,157.46,157.4,20.0]
[1721316739679,6.1675,157.48,157.41,45.0]
[1721316739876,1.58774451,157.47,157.42,20.0]
[1721316740985,1.58774451,157.47,157.36,20.0]
[1721316741183,1.58774451,157.47,157.37,45.0]
[1721316741367,0.17,157.46,157.37,45.0]
[1721316741563,0.17,157.46,157.38,20.0]
[1721316741564,1.7580642,157.46,157.38,20.0]
[1721316741871,1.7580642,157.46,157.39,45.0]
[1721316742073,1.7580642,157.46,157.4,20.0]
[1721316742586,1.58801157,157.47,157.4,20.0]
[1721316743090,0.17,157.46,157.33,6.6303488]
[1721316743292,25.585,157.44,157.33,6.6303488]
[1721316743476,1.58855139,157.43,157.33,6.6303488]
[1721316743687,1.58869032,157.42,157.33,6.6303488]
[1721316743869,0.17,157.41,157.33,6.6303488]
[1721316744067,1.75871191,157.41,157.33,6.6303488]
[1721316744573,40.4555,157.4,157.33,6.6303488]
[1721316744786,1.58892115,157.39,157.33,6.6303488]
[1721316744961,0.17,157.38,157.26,24.06848143]
[1721316745163,1.75892414,157.38,157.26,24.06848143]
[1721316745367,1.75892414,157.38,157.3,6.62674652]
[1721316745688,1.75892414,157.38,157.26,15.6195]
[1721316745873,1.75892414,157.38,157.3,6.62617176]
[1721316746195,1.75892414,157.38,157.25,34.9]
[1721316746382,19.13,157.36,157.3,6.62673279]
[1721316746695,1.5894578,157.35,157.22,24.17098143]
[1721316747014,0.17,157.34,157.26,6.62507453]
[1721316747185,1.75950047,157.34,157.22,24.17098143]
[1721316747371,6.4772,157.32,157.23,6.62184485]
[1721316747566,1.75969949,157.31,157.23,6.62184485]
[1721316748890,1.75969949,157.31,157.18,51.0451]
[1721316748891,1.75969949,157.31,157.24,20.0]
[1721316749095,1.75969949,157.31,157.2,6.62625356]
[1721316749278,1.75969949,157.31,157.21,20.0]
[1721316749480,1.75969949,157.31,157.22,45.0]
[1721316749874,1.75969949,157.31,157.2,6.62625356]
[1721316750377,19.13,157.28,157.2,6.62625356]
[1721316750578,1.76017604,157.27,157.2,6.62625356]
[1721316750781,1.59032416,157.26,157.2,6.62625356]
[1721316751190,0.17,157.25,157.14,15.3918]
[1721316751388,1.76030231,157.25,157.14,15.3918]
[1721316751584,1.76030231,157.25,157.15,20.0]
[1721316751904,36.12580231,157.25,157.15,20.0]
[1721316752095,16.82580231,157.25,157.15,34.9]
[1721316752294,16.82580231,157.25,157.16,20.0]
[1721316752490,6.1325,157.29,157.16,20.0]
[1721316752491,1.59024555,157.28,157.16,20.0]
[1721316752681,1.59024555,157.28,157.18,34.9]
[1721316753000,1.59024555,157.28,157.19,20.0]
[1721316753413,1.59024555,157.28,157.13,41.52377794]
[1721316754114,0.17,157.27,157.13,41.52377794]
[1721316754287,1.76030047,157.27,157.13,41.52377794]
[1721316754492,1.76030047,157.27,157.18,31.1]
[1721316754815,1.76030047,157.27,157.19,65.0]
[1721316755022,1.59030047,157.27,157.19,20.0]
[1721316755178,0.17,157.26,157.19,20.0]
[1721316755381,1.59043633,157.26,157.16,20.0]
[1721316755601,6.6267,157.24,157.16,20.0]
[1721316755801,1.5905138,157.23,157.13,6.62377794]
[1721316755985,15.4055,157.22,157.13,6.62377794]
[1721316756192,1.59060678,157.21,157.13,6.62377794]
[1721316756486,16.82598261,157.22,157.15,31.1]
[1721316756681,6.6267,157.24,157.18,31.1]
[1721316757087,6.3613,157.29,157.21,31.1]
[1721316757381,6.3613,157.29,157.24,31.1]
[1721316757589,6.3613,157.33,157.27,31.1]
[1721316757805,6.3613,157.33,157.28,65.0]
[1721316758898,1.58919944,157.36,157.3,31.1]
[1721316759101,6.3185,157.37,157.31,65.0]
[1721316760196,8.17806325,157.41,157.31,65.0]
[1721316763497,6.5893,157.41,157.33,34.92]
[1721316763706,7.88835704,157.46,157.34,45.0]
[1721316764017,7.88835704,157.46,157.36,34.92]
[1721316764018,1.58815135,157.45,157.36,34.92]
[1721316764184,1.58815135,157.45,157.37,65.0]
[1721316765512,7.88797114,157.46,157.37,65.0]
[1721316765889,6.3,157.46,157.37,65.0]
[1721316766209,1.58790158,157.45,157.37,65.0]
[1721316767393,1.58793619,157.45,157.37,65.0]
[1721316768715,1.58793619,157.45,157.37,20.0]
[1721316768897,1.58830563,157.52,157.42,34.92]
[1721316769095,1.58778745,157.54,157.43,20.0]
[1721316769300,1.58714731,157.6,157.43,20.0]
[1721316769603,1.58684401,157.59,157.42,30.34345955]
[1721316769915,1.58684401,157.59,157.5,34.92]
[1721316770109,1.58684401,157.59,157.51,20.0]
[1721316770414,1.58684401,157.59,157.5,34.92]
[1721316770594,1.58684401,157.59,157.47,34.92]
[1721316770796,1.58684401,157.59,157.48,65.0]
[1721316770997,1.58684401,157.59,157.5,34.92]
[1721316771200,1.58677772,157.6,157.51,65.0]
[1721316771513,1.58677772,157.6,157.53,34.92]
[1721316771817,1.5866262,157.6,157.54,20.0]
[1721316772824,1.5866262,157.6,157.5,34.92]
[1721316773025,1.5866262,157.6,157.51,20.0]
[1721316773311,0.17,157.59,157.51,20.0]
[1721316773610,1.75681788,157.59,157.51,20.0]
[1721316773801,1.75681788,157.59,157.48,34.92]
[1721316773997,1.75681788,157.59,157.49,65.0]
[1721316775831,1.58681788,157.59,157.49,65.0]
[1721316775994,1.58680142,157.6,157.49,65.0]
[1721316776198,1.58680268,157.59,157.49,65.0]
[1721316777318,0.17,157.58,157.49,65.0]
[1721316777519,1.75695003,157.58,157.49,65.0]
[1721316778019,1.58695003,157.58,157.49,65.0]
[1721316778318,1.58681066,157.6,157.49,65.0]
[1721316778515,0.17,157.59,157.49,65.0]
[1721316778716,1.58675776,157.59,157.51,34.92]
[1721316779021,1.58675776,157.59,157.52,65.0]
[1721316779323,1.58675776,157.59,157.52,20.0]
[1721316779615,20.70675776,157.59,157.52,20.0]
[1721316779909,20.70675776,157.59,157.48,34.92]
[1721316780112,1.58675776,157.59,157.49,45.0]
[1721316780420,1.5867071,157.6,157.51,34.92]
[1721316780612,1.58674874,157.59,157.52,45.0]
[1721316781163,1.58674874,157.59,157.48,34.92]
[1721316781329,25.5064,157.61,157.44,34.92]
[1721316781330,1.58723905,157.58,157.44,34.92]
[1721316781524,1.58707142,157.57,157.44,34.92]
[1721316781729,1.58691034,157.56,157.48,34.92]
[1721316781952,1.5870661,157.58,157.48,34.92]
[1721316782134,1.5869263,157.57,157.48,34.92]
[1721316782537,1.58699569,157.59,157.49,20.0]
[1721316782847,1.58699569,157.59,157.5,45.0]
[1721316783045,0.17,157.58,157.51,20.0]
[1721316783357,19.12,157.57,157.44,34.92]
[1721316783558,1.75726488,157.56,157.44,34.92]
[1721316783950,1.58726488,157.56,157.44,34.92]
[1721316784459,1.5869679,157.57,157.44,34.92]
[1721316784760,1.58678597,157.59,157.5,34.92]
[1721316784961,1.58678597,157.59,157.51,65.0]
[1721316786133,1.58678597,157.59,157.53,34.92]
[1721316786342,1.58661106,157.6,157.54,20.0]
[1721316789736,1.58661106,157.6,157.44,44.04198706]
[1721316789737,6.3457,157.59,157.5,34.92]
[1721316789938,19.12,157.56,157.47,34.92]
[1721316790276,1.75728561,157.55,157.47,34.92]
[1721316790446,25.2034,157.53,157.44,34.92]
[1721316790758,1.58768369,157.52,157.44,34.92]
[1721316790967,1.58756025,157.51,157.44,34.92]
[1721316792085,0.17,157.5,157.41,34.92]
[1721316792357,1.75784808,157.5,157.41,34.92]
[1721316793141,15.0709,157.49,157.41,34.92]
[1721316793339,1.58805982,157.48,157.41,34.92]
[1721316793549,0.17,157.47,157.41,34.92]
[1721316793756,1.75806077,157.47,157.41,34.92]
[1721316794569,1.75806077,157.47,157.42,20.0]
[1721316794866,6.1608,157.46,157.38,34.92]
[1721316795064,1.75825181,157.45,157.35,34.92]
[1721316795370,19.12,157.44,157.32,34.92]
[1721316795567,1.588715,157.43,157.32,34.92]
[1721316795868,1.758715,157.42,157.32,34.92]
[1721316796366,1.758715,157.42,157.29,34.92]
[1721316796575,19.12,157.4,157.29,34.92]
[1721316796743,1.58897798,157.39,157.29,34.92]
[1721316797068,0.17,157.38,157.29,34.92]
[1721316797269,1.75891829,157.38,157.29,34.92]
[1721316798446,1.75891829,157.38,157.3,20.0]
[1721316800563,20.87891829,157.38,157.26,34.92]
[1721316800769,19.12,157.36,157.26,34.92]
[1721316800966,1.5892936,157.35,157.26,34.92]
[1721316801355,1.5892936,157.35,157.23,34.92]
[1721316801555,0.17,157.34,157.23,34.92]
[1721316801879,1.75951365,157.34,157.23,34.92]
[1721316802769,1.75951365,157.34,157.24,20.0]
[1721316802975,1.58952451,157.35,157.26,34.92]
[1721316803177,1.58952451,157.35,157.27,20.0]
[1721316803959,1.58952451,157.35,157.28,45.0]
[1721316804278,1.58903773,157.36,157.29,20.0]
[1721316804590,1.75899969,157.35,157.29,20.0]
[1721316804747,1.75899969,157.35,157.27,20.0]
[1721316804951,1.75899969,157.35,157.26,34.92]
[1721316805949,1.58918308,157.36,157.27,45.0]
[1721316806163,1.58898365,157.35,157.29,34.92]
[1721316806367,1.58898618,157.36,157.3,45.0]
[1721316806587,1.58898618,157.36,157.31,20.0]
[1721316807289,6.3492,157.37,157.31,20.0]
[1721316807781,1.58883186,157.36,157.31,20.0]
[1721316807981,1.58900601,157.35,157.31,20.0]
[1721316808287,6.3492,157.37,157.3,20.0]
[1721316808491,6.3492,157.37,157.31,45.0]
[1721316808789,6.3492,157.37,157.32,20.0]
[1721316809289,1.58883147,157.36,157.32,20.0]
[1721316809453,1.58902873,157.35,157.3,20.0]
[1721316809967,0.17,157.34,157.27,20.0]
[1721316810157,0.17,157.34,157.26,34.92]
[1721316810158,1.75940323,157.34,157.26,34.92]
[1721316811468,1.58940323,157.34,157.26,34.92]
[1721316811670,1.58926602,157.35,157.27,65.0]
[1721316811979,1.58926617,157.34,157.27,20.0]
[1721316812498,1.58905636,157.36,157.28,45.0]
[1721316812677,6.3492,157.37,157.29,20.0]
[1721316812678,1.58904231,157.35,157.29,20.0]
[1721316813304,1.58904231,157.35,157.27,20.0]
[1721316813794,0.17,157.34,157.27,20.0]
[1721316813968,1.75948747,157.34,157.27,20.0]
[1721316815190,1.58938901,157.35,157.27,20.0]
[1721316815390,1.58918904,157.34,157.28,45.0]
[1721316815566,1.58915073,157.36,157.29,20.0]
[1721316815768,1.58915073,157.35,157.29,20.0]
[1721316817675,1.58914745,157.36,157.29,20.0]
[1721316817876,7.93806502,157.37,157.3,79.92]
[1721316818085,7.93806502,157.37,157.31,20.0]
[1721316818682,33.41256502,157.37,157.31,20.0]
[1721316818895,33.41256502,157.37,157.28,20.0]
[1721316819503,19.12,157.35,157.25,20.0]
[1721316819687,1.58938039,157.34,157.25,20.0]
[1721316819886,1.58915248,157.36,157.27,34.92]
[1721316820506,7.93812413,157.37,157.27,34.92]
[1721316820809,7.93812413,157.37,157.28,65.0]
[1721316821910,1.58909618,157.36,157.3,34.92]
[1721316822128,1.58909618,157.36,157.31,20.0]
[1721316824913,7.93809224,157.37,157.31,20.0]
[1721316825793,1.58889095,157.36,157.31,20.0]
[1721316827500,1.58892084,157.35,157.31,20.0]
[1721316827700,1.58892084,157.35,157.24,34.92]
[1721316828824,1.58909224,157.36,157.27,34.92]
[1721316828999,1.5889805,157.35,157.28,65.0]
[1721316829203,1.5889788,157.36,157.28,65.0]
[1721316829522,1.5889788,157.36,157.3,34.92]
[1721316829697,1.5889788,157.36,157.31,20.0]
[1721316830297,1.5889788,157.36,157.32,31.05]
[1721316830504,1.5889788,157.36,157.33,20.0]
[1721316830710,7.93808825,157.37,157.33,20.0]
[1721316831089,6.3492,157.37,157.33,20.0]
[1721316831896,1.5887992,157.36,157.33,20.0]
[1721316832112,1.58890027,157.35,157.28,76.05]
[1721316833110,1.58911007,157.34,157.28,76.05]
[1721316833431,1.58911007,157.36,157.28,76.05]
[1721316833725,1.58908891,157.35,157.29,20.0]
[1721316833891,1.589068,157.36,157.29,20.0]
[1721316834323,1.589068,157.36,157.3,45.0]
[1721316834493,6.3492,157.37,157.27,34.94]
[1721316834494,1.58891685,157.35,157.31,20.0]
[1721316834687,1.58897375,157.36,157.31,20.0]
[1721316835087,1.58897375,157.36,157.27,34.94]
[1721316835088,1.58897375,157.36,157.28,20.0]
[1721316835292,1.58897375,157.36,157.29,45.0]
[1721316835503,1.58894409,157.35,157.3,20.0]
[1721316835721,1.5889745,157.36,157.3,20.0]
[1721316836292,1.58893342,157.35,157.3,20.0]
[1721316836705,1.58909468,157.36,157.28,20.0]
[1721316837022,1.58903574,157.36,157.29,45.0]
[1721316837519,1.58903574,157.36,157.3,20.0]
[1721316837929,1.58893333,157.35,157.3,20.0]
[1721316838303,1.58893333,157.35,157.28,20.0]
[1721316838523,1.58893333,157.35,157.25,20.0]
[1721316838837,1.75918043,157.36,157.25,20.0]
[1721316839126,1.58918043,157.36,157.25,20.0]
[1721316839626,1.58918043,157.36,157.26,0.17]
[1721316839996,1.58918043,157.36,157.26,45.17]
[1721316840194,1.58918043,157.36,157.27,20.0]
[1721316840500,1.58918043,157.36,157.28,45.0]
[1721316840702,1.58918043,157.36,157.24,34.94]
[1721316840703,0.17,157.35,157.24,34.94]
[1721316840905,20.87941351,157.35,157.24,34.94]
[1721316841639,27.23481351,157.35,157.24,34.94]
[1721316842146,20.87941351,157.35,157.25,20.0]
[1721316842927,27.23471351,157.35,157.25,20.0]
[1721316843506,20.87941351,157.35,157.25,20.0]
[1721316844942,1.75941351,157.35,157.25,20.0]
[1721316845232,1.75941351,157.35,157.26,45.0]
[1721316845443,1.75941351,157.35,157.27,20.0]
[1721316846608,31.9743,157.33,157.21,50.6053]
[1721316846830,1.58965144,157.32,157.21,50.6053]
[1721316847138,0.17,157.31,157.21,50.6053]
[1721316847345,1.7595898,157.31,157.21,50.6053]
[1721316847711,27.2367898,157.31,157.18,34.94]
[1721316848143,25.4772,157.3,157.18,34.94]
[1721316848307,6.4979,157.33,157.18,34.94]
[1721316848308,40.8317,157.28,157.18,34.94]
[1721316848520,1.59013432,157.27,157.18,34.94]
[1721316848931,21.7117,157.28,157.18,34.94]
[1721316849353,6.4979,157.28,157.21,34.94]
[1721316849552,6.4979,157.28,157.22,20.0]
[1721316849850,6.4979,157.28,157.23,45.0]
[1721316850152,1.58965144,157.27,157.24,20.0]
[1721316850324,6.4979,157.28,157.24,20.0]
[1721316850524,6.4979,157.28,157.22,20.0]
[1721316850854,6.4979,157.28,157.23,45.0]
[1721316851156,6.4979,157.28,157.24,20.0]
[1721316851334,21.428,157.32,157.25,45.0]